[Event "*** SCC Grand Prix: Titled Tuesday Blitz"]
[Site "Chess.com"]
[Date "2020.09.08"]
[Round "1"]
[White "Sanyura"]
[Black "gumimis"]
[Result "1-0"]
[WhiteElo "2543"]
[BlackElo "2200"]
[TimeControl "180+1"]
[EndTime "10:07:33 PDT"]
[Termination "Sanyura won by checkmate"]

1. d4 {[%clk 0:03:00.3]} 1... Nf6 {[%clk 0:02:57.2]} 2. Nf3 {[%clk 0:02:59.4]}
2... g6 {[%clk 0:02:56.9]} 3. c4 {[%clk 0:02:58.4]} 3... Bg7 {[%clk 0:02:56.8]}
4. Nc3 {[%clk 0:02:58]} 4... O-O {[%clk 0:02:57.3]} 5. e4 {[%clk 0:02:55.9]}
5... d6 {[%clk 0:02:57.6]} 6. Be2 {[%clk 0:02:54]} 6... Na6 {[%clk 0:02:56.9]}
7. O-O {[%clk 0:02:53.2]} 7... e5 {[%clk 0:02:55.5]} 8. Bg5 {[%clk 0:02:45.9]}
8... Qe8 {[%clk 0:02:40.7]} 9. dxe5 {[%clk 0:02:24.5]} 9... dxe5 {[%clk
0:02:39.4]} 10. Qd2 {[%clk 0:02:20.9]} 10... c6 {[%clk 0:02:25.9]} 11. Rad1
{[%clk 0:02:11.5]} 11... Bg4 {[%clk 0:02:11.2]} 12. h3 {[%clk 0:01:52.5]} 12...
Bxf3 {[%clk 0:02:10.5]} 13. Bxf3 {[%clk 0:01:53.4]} 13... Rd8 {[%clk 0:02:07.1]}
14. Qe3 {[%clk 0:01:43.9]} 14... Qe7 {[%clk 0:01:49.1]} 15. Qxa7 {[%clk
0:01:41]} 15... Nc5 {[%clk 0:01:43.1]} 16. Qa3 {[%clk 0:01:38.8]} 16... h6
{[%clk 0:01:34.5]} 17. Be3 {[%clk 0:01:38]} 17... b6 {[%clk 0:01:26.1]} 18. Na4
{[%clk 0:01:34.7]} 18... Ra8 {[%clk 0:01:16.7]} 19. Bxc5 {[%clk 0:01:34.4]}
19... bxc5 {[%clk 0:01:16.6]} 20. Qxc5 {[%clk 0:01:35.3]} 20... Qb7 {[%clk
0:00:56.2]} 21. b3 {[%clk 0:01:33]} 21... Nd7 {[%clk 0:00:51.8]} 22. Qe7 {[%clk
0:01:17.3]} 22... Rfd8 {[%clk 0:00:46.4]} 23. Nc5 {[%clk 0:01:13.9]} 23... Qb4
{[%clk 0:00:40.6]} 24. Rxd7 {[%clk 0:01:13.1]} 24... Rxd7 {[%clk 0:00:37.7]} 25.
Qxd7 {[%clk 0:01:14]} 25... Qxc5 {[%clk 0:00:37.4]} 26. Rd1 {[%clk 0:01:05.2]}
26... Rxa2 {[%clk 0:00:31.5]} 27. Qe8+ {[%clk 0:01:04.9]} 27... Kh7 {[%clk
0:00:31.3]} 28. Qxf7 {[%clk 0:01:00.1]} 28... Qxf2+ {[%clk 0:00:30.7]} 29. Kh2
{[%clk 0:01:00.2]} 29... Rd2 {[%clk 0:00:15.3]} 30. Ra1 {[%clk 0:00:52.3]} 30...
Ra2 {[%clk 0:00:15.3]} 31. Rxa2 {[%clk 0:00:51.6]} 31... Qxa2 {[%clk 0:00:15.8]}
32. b4 {[%clk 0:00:51.9]} 32... Qb3 {[%clk 0:00:14.7]} 33. Bg4 {[%clk
0:00:47.9]} 33... Qxb4 {[%clk 0:00:10.9]} 34. Bd7 {[%clk 0:00:47.4]} 34... c5
{[%clk 0:00:09.5]} 35. Be6 {[%clk 0:00:34.4]} 35... h5 {[%clk 0:00:09.8]} 36.
Qe8 {[%clk 0:00:25.9]} 36... Qc3 {[%clk 0:00:08]} 37. Bf7 {[%clk 0:00:24.5]}
37... Kh6 {[%clk 0:00:08.2]} 38. Qe6 {[%clk 0:00:21.6]} 38... Kh7 {[%clk
0:00:04.8]} 39. Qxg6+ {[%clk 0:00:21.6]} 39... Kh8 {[%clk 0:00:05.1]} 40. Qxh5+
{[%clk 0:00:22.5]} 40... Bh6 {[%clk 0:00:04.8]} 41. Qxh6# {[%clk 0:00:23.4]} 1-0

[Event "*** SCC Grand Prix: Titled Tuesday Blitz"]
[Site "Chess.com"]
[Date "2020.09.08"]
[Round "1"]
[White "lucachess49"]
[Black "LPSupi"]
[Result "0-1"]
[WhiteElo "2432"]
[BlackElo "2865"]
[TimeControl "180+1"]
[EndTime "10:07:34 PDT"]
[Termination "LPSupi won by resignation"]

1. d4 {[%clk 0:02:59.8]} 1... Nf6 {[%clk 0:02:59.7]} 2. c4 {[%clk 0:03:00.5]}
2... e6 {[%clk 0:03:00]} 3. Nc3 {[%clk 0:03:00.9]} 3... Bb4 {[%clk 0:02:59.9]}
4. e3 {[%clk 0:03:00.8]} 4... O-O {[%clk 0:03:00]} 5. Ne2 {[%clk 0:03:00.7]}
5... Re8 {[%clk 0:02:58.8]} 6. a3 {[%clk 0:03:00.7]} 6... Bf8 {[%clk 0:02:57.9]}
7. Ng3 {[%clk 0:03:01.2]} 7... d5 {[%clk 0:02:55.2]} 8. Be2 {[%clk 0:03:00.3]}
8... b6 {[%clk 0:02:55.4]} 9. cxd5 {[%clk 0:03:00.1]} 9... exd5 {[%clk
0:02:54.8]} 10. O-O {[%clk 0:03:00.2]} 10... c5 {[%clk 0:02:49.5]} 11. dxc5
{[%clk 0:02:58.8]} 11... bxc5 {[%clk 0:02:50.4]} 12. Nh5 {[%clk 0:02:58.9]}
12... Nxh5 {[%clk 0:02:50.6]} 13. Bxh5 {[%clk 0:02:59.4]} 13... Ba6 {[%clk
0:02:45.8]} 14. Qf3 {[%clk 0:02:08]} 14... g6 {[%clk 0:01:50]} 15. Nxd5 {[%clk
0:01:58.8]} 15... Bg7 {[%clk 0:01:49.1]} 16. Rd1 {[%clk 0:01:56.1]} 16... Nc6
{[%clk 0:01:48.4]} 17. Bg4 {[%clk 0:01:43.7]} 17... Ne5 {[%clk 0:01:45.6]} 18.
Qh3 {[%clk 0:01:40.7]} 18... Nd3 {[%clk 0:00:48.2]} 19. Nc3 {[%clk 0:01:29.2]}
19... c4 {[%clk 0:00:46.6]} 20. Be2 {[%clk 0:01:13.7]} 20... Rb8 {[%clk
0:00:44.2]} 21. Ra2 {[%clk 0:00:42.6]} 21... h5 {[%clk 0:00:35.2]} 22. a4 {[%clk
0:00:30.5]} 22... Bc8 {[%clk 0:00:31.2]} 23. Qg3 {[%clk 0:00:22.1]} 23... Be5
{[%clk 0:00:21.4]} 24. f4 {[%clk 0:00:20.4]} 24... Bg7 {[%clk 0:00:21.5]} 25.
Bxd3 {[%clk 0:00:19.4]} 25... cxd3 {[%clk 0:00:20.7]} 26. Bd2 {[%clk 0:00:19.6]}
26... Be6 {[%clk 0:00:19.6]} 27. Ra3 {[%clk 0:00:16.1]} 27... Rxb2 {[%clk
0:00:19.4]} 28. e4 {[%clk 0:00:16.4]} 28... Bg4 {[%clk 0:00:19.3]} 29. Raa1
{[%clk 0:00:08.2]} 29... Bxd1 {[%clk 0:00:17.8]} 30. Rxd1 {[%clk 0:00:08.9]}
30... Rxd2 {[%clk 0:00:18.4]} 31. Rxd2 {[%clk 0:00:09.3]} 31... Qd4+ {[%clk
0:00:18.1]} 32. Kf1 {[%clk 0:00:07.1]} 32... Qxc3 {[%clk 0:00:19]} 33. Rxd3
{[%clk 0:00:07.3]} 33... Qc1+ {[%clk 0:00:18.5]} 34. Kf2 {[%clk 0:00:07.7]}
34... Qc2+ {[%clk 0:00:17.7]} 35. Kf1 {[%clk 0:00:06.9]} 35... Rxe4 {[%clk
0:00:17.8]} 36. f5 {[%clk 0:00:07.2]} 36... Qe2+ {[%clk 0:00:17.2]} 37. Kg1
{[%clk 0:00:06.8]} 37... Qe1+ {[%clk 0:00:17.1]} 38. Qxe1 {[%clk 0:00:06.9]}
38... Rxe1+ {[%clk 0:00:18]} 39. Kf2 {[%clk 0:00:07.8]} 39... Ra1 {[%clk
0:00:18.9]} 40. fxg6 {[%clk 0:00:05.2]} 40... fxg6 {[%clk 0:00:18.9]} 41. Rd8+
{[%clk 0:00:05.9]} 41... Kh7 {[%clk 0:00:19.3]} 42. Rd6 {[%clk 0:00:06.5]} 42...
Rxa4 {[%clk 0:00:18.6]} 43. g3 {[%clk 0:00:06.6]} 43... a5 {[%clk 0:00:18.6]}
44. Kf3 {[%clk 0:00:07]} 44... Ra2 {[%clk 0:00:17.9]} 45. h4 {[%clk 0:00:07.1]}
45... a4 {[%clk 0:00:18.4]} 46. Ra6 {[%clk 0:00:07]} 46... a3 {[%clk 0:00:18.9]}
47. Ra7 {[%clk 0:00:07.1]} 47... Ra1 {[%clk 0:00:19.4]} 48. g4 {[%clk
0:00:07.1]} 48... hxg4+ {[%clk 0:00:19]} 49. Kxg4 {[%clk 0:00:08]} 49... a2
{[%clk 0:00:19.7]} 0-1

[Event "*** SCC Grand Prix: Titled Tuesday Blitz"]
[Site "Chess.com"]
[Date "2020.09.08"]
[Round "1"]
[White "Aborigen_came"]
[Black "zajka-molotok"]
[Result "1-0"]
[WhiteElo "2720"]
[BlackElo "2374"]
[TimeControl "180+1"]
[EndTime "10:07:34 PDT"]
[Termination "Aborigen_came won by resignation"]

1. Nc3 {[%clk 0:03:00.8]} 1... d5 {[%clk 0:02:50.3]} 2. e4 {[%clk 0:03:00.7]}
2... e6 {[%clk 0:02:50]} 3. g3 {[%clk 0:03:00.4]} 3... Nf6 {[%clk 0:02:49.5]} 4.
Bg2 {[%clk 0:03:00.2]} 4... d4 {[%clk 0:02:48.3]} 5. Nce2 {[%clk 0:02:59.4]}
5... c5 {[%clk 0:02:48]} 6. d3 {[%clk 0:02:59.5]} 6... Nc6 {[%clk 0:02:47.6]} 7.
f4 {[%clk 0:02:59.7]} 7... e5 {[%clk 0:02:41.4]} 8. Nf3 {[%clk 0:02:59.3]} 8...
Bd6 {[%clk 0:02:40.9]} 9. O-O {[%clk 0:02:58]} 9... Bg4 {[%clk 0:02:39.6]} 10.
Nh4 {[%clk 0:02:51.2]} 10... Qc7 {[%clk 0:02:27.4]} 11. h3 {[%clk 0:02:45.6]}
11... Bxe2 {[%clk 0:02:26.5]} 12. Qxe2 {[%clk 0:02:46.5]} 12... Ne7 {[%clk
0:02:11.4]} 13. Bd2 {[%clk 0:02:27.4]} 13... h6 {[%clk 0:01:59.8]} 14. c4 {[%clk
0:02:21]} 14... Nd7 {[%clk 0:01:54.1]} 15. a3 {[%clk 0:02:05.5]} 15... a5 {[%clk
0:01:52.5]} 16. b3 {[%clk 0:02:01.7]} 16... f6 {[%clk 0:01:43.9]} 17. Qh5+
{[%clk 0:01:59.2]} 17... Kd8 {[%clk 0:01:42]} 18. Ng6 {[%clk 0:01:32]} 18...
Nxg6 {[%clk 0:01:39.3]} 19. Qxg6 {[%clk 0:01:32.9]} 19... Nf8 {[%clk 0:01:26.7]}
20. Qh5 {[%clk 0:01:29.5]} 20... Qe7 {[%clk 0:01:22.5]} 21. b4 {[%clk
0:01:23.2]} 21... Kc7 {[%clk 0:01:12.1]} 22. bxa5 {[%clk 0:01:15.7]} 22... g6
{[%clk 0:01:10.1]} 23. Qd1 {[%clk 0:01:12.8]} 23... Ra6 {[%clk 0:01:08.7]} 24.
Rb1 {[%clk 0:01:07.1]} 24... Nd7 {[%clk 0:01:07.9]} 25. Rb5 {[%clk 0:00:59.8]}
25... g5 {[%clk 0:00:59.4]} 26. fxg5 {[%clk 0:00:50.1]} 26... hxg5 {[%clk
0:00:57.9]} 27. Qb3 {[%clk 0:00:48.2]} 27... Ra7 {[%clk 0:00:56.5]} 28. Rb1
{[%clk 0:00:45.8]} 28... Rb8 {[%clk 0:00:55.3]} 29. Bf3 {[%clk 0:00:44.9]} 29...
Nf8 {[%clk 0:00:26.4]} 30. a4 {[%clk 0:00:25.7]} 30... Kd8 {[%clk 0:00:25.3]}
31. Bg4 {[%clk 0:00:20.7]} 31... Qc7 {[%clk 0:00:19.6]} 32. Rb6 {[%clk
0:00:16.8]} 32... Be7 {[%clk 0:00:16.8]} 33. a6 {[%clk 0:00:14.6]} 33... Nd7
{[%clk 0:00:12.3]} 34. Ba5 {[%clk 0:00:12.6]} 34... Ke8 {[%clk 0:00:11.1]} 35.
Rxb7 {[%clk 0:00:09.4]} 35... Rbxb7 {[%clk 0:00:11]} 36. axb7 {[%clk 0:00:07.7]}
36... Qb8 {[%clk 0:00:10.1]} 37. Qb5 {[%clk 0:00:04.8]} 37... Qd8 {[%clk
0:00:04.6]} 38. Bxd8 {[%clk 0:00:04]} 38... Bxd8 {[%clk 0:00:04.3]} 39. Qxd7+
{[%clk 0:00:03.9]} 1-0

[Event "*** SCC Grand Prix: Titled Tuesday Blitz"]
[Site "Chess.com"]
[Date "2020.09.08"]
[Round "1"]
[White "garicradomir"]
[Black "Vuk2000"]
[Result "0-1"]
[WhiteElo "2373"]
[BlackElo "2719"]
[TimeControl "180+1"]
[EndTime "10:07:34 PDT"]
[Termination "Vuk2000 won on time"]

1. e4 {[%clk 0:02:59.7]} 1... e6 {[%clk 0:02:59.9]} 2. g3 {[%clk 0:02:53.3]}
2... d5 {[%clk 0:03:00]} 3. exd5 {[%clk 0:02:48.7]} 3... exd5 {[%clk 0:03:00.4]}
4. Nf3 {[%clk 0:02:48.1]} 4... Nf6 {[%clk 0:02:57.1]} 5. Bg2 {[%clk 0:02:47.7]}
5... Bd6 {[%clk 0:02:42.6]} 6. Qe2+ {[%clk 0:02:35.2]} 6... Be7 {[%clk
0:02:03.3]} 7. O-O {[%clk 0:02:32.4]} 7... O-O {[%clk 0:02:03.8]} 8. d4 {[%clk
0:02:29.9]} 8... Re8 {[%clk 0:02:02.6]} 9. Nc3 {[%clk 0:02:13.1]} 9... Bf5
{[%clk 0:01:56.9]} 10. Bf4 {[%clk 0:01:52.2]} 10... c6 {[%clk 0:01:52.9]} 11.
Rfe1 {[%clk 0:01:45.4]} 11... Bb4 {[%clk 0:01:39.3]} 12. Ne5 {[%clk 0:01:33]}
12... Nbd7 {[%clk 0:01:32.5]} 13. a3 {[%clk 0:01:20.8]} 13... Bxc3 {[%clk
0:01:30.5]} 14. bxc3 {[%clk 0:01:20.4]} 14... Qa5 {[%clk 0:01:01.8]} 15. g4
{[%clk 0:00:49.4]} 15... Bxg4 {[%clk 0:00:32.2]} 16. Qd3 {[%clk 0:00:49.1]}
16... Bh5 {[%clk 0:00:28.2]} 17. Re3 {[%clk 0:00:46]} 17... Nxe5 {[%clk
0:00:25.4]} 18. dxe5 {[%clk 0:00:45.4]} 18... Bg6 {[%clk 0:00:25.1]} 19. Qd4
{[%clk 0:00:44]} 19... Nh5 {[%clk 0:00:19.6]} 20. Bg3 {[%clk 0:00:40.7]} 20...
Bxc2 {[%clk 0:00:17.3]} 21. Rae1 {[%clk 0:00:39.3]} 21... Bg6 {[%clk 0:00:16.8]}
22. c4 {[%clk 0:00:35.8]} 22... dxc4 {[%clk 0:00:16]} 23. e6 {[%clk 0:00:30.7]}
23... fxe6 {[%clk 0:00:14.9]} 24. Qxc4 {[%clk 0:00:30.2]} 24... Nxg3 {[%clk
0:00:14.3]} 25. Rxe6 {[%clk 0:00:28]} 25... Rxe6 {[%clk 0:00:08.9]} 26. Rxe6
{[%clk 0:00:14]} 26... Bf7 {[%clk 0:00:06.6]} 27. hxg3 {[%clk 0:00:14.3]} 27...
Bxe6 {[%clk 0:00:06.6]} 28. Qxe6+ {[%clk 0:00:14.4]} 28... Kh8 {[%clk 0:00:07]}
29. Be4 {[%clk 0:00:12.4]} 29... Qh5 {[%clk 0:00:06.8]} 30. Qe7 {[%clk
0:00:05.7]} 30... c5 {[%clk 0:00:06.1]} 31. Qxb7 {[%clk 0:00:03.6]} 31... Rd8
{[%clk 0:00:06]} 32. Kg2 {[%clk 0:00:04.5]} 32... c4 {[%clk 0:00:04.9]} 33. Qc7
{[%clk 0:00:04.6]} 33... Re8 {[%clk 0:00:04.4]} 34. Qxc4 {[%clk 0:00:04.1]}
34... Qg4 {[%clk 0:00:04.4]} 35. f3 {[%clk 0:00:03.7]} 35... Qd7 {[%clk
0:00:04.4]} 0-1

[Event "*** SCC Grand Prix: Titled Tuesday Blitz"]
[Site "Chess.com"]
[Date "2020.09.08"]
[Round "1"]
[White "Karacsonyi_Gellert"]
[Black "j_coca"]
[Result "1-0"]
[WhiteElo "2641"]
[BlackElo "2318"]
[TimeControl "180+1"]
[EndTime "10:07:36 PDT"]
[Termination "Karacsonyi_Gellert won by resignation"]

1. e4 {[%clk 0:03:00.9]} 1... Nf6 {[%clk 0:02:37.4]} 2. e5 {[%clk 0:03:00.7]}
2... Nd5 {[%clk 0:02:35.9]} 3. d4 {[%clk 0:03:00.8]} 3... d6 {[%clk 0:02:35.5]}
4. c4 {[%clk 0:03:01]} 4... Nb6 {[%clk 0:02:35.3]} 5. exd6 {[%clk 0:03:00.4]}
5... cxd6 {[%clk 0:02:28.4]} 6. Nc3 {[%clk 0:02:58.7]} 6... g6 {[%clk
0:02:28.7]} 7. Be3 {[%clk 0:02:58.5]} 7... Bg7 {[%clk 0:02:28.6]} 8. Rc1 {[%clk
0:02:59]} 8... O-O {[%clk 0:02:28.8]} 9. b3 {[%clk 0:02:58]} 9... Nc6 {[%clk
0:02:28.9]} 10. d5 {[%clk 0:02:54.4]} 10... Nb4 {[%clk 0:02:22.9]} 11. Bd4
{[%clk 0:02:45.7]} 11... f6 {[%clk 0:02:11.4]} 12. Be2 {[%clk 0:02:40.7]} 12...
Bf5 {[%clk 0:02:09]} 13. Nf3 {[%clk 0:02:37.9]} 13... Na6 {[%clk 0:02:02.6]} 14.
O-O {[%clk 0:02:37]} 14... Nd7 {[%clk 0:02:02.1]} 15. h3 {[%clk 0:02:33.3]}
15... Ne5 {[%clk 0:01:59.8]} 16. Qd2 {[%clk 0:02:22.4]} 16... b6 {[%clk
0:01:56.8]} 17. Ne1 {[%clk 0:02:08.6]} 17... Nc5 {[%clk 0:01:47.8]} 18. f4
{[%clk 0:02:02.1]} 18... Nf7 {[%clk 0:01:45.7]} 19. g4 {[%clk 0:01:57.1]} 19...
Bd7 {[%clk 0:01:45]} 20. Nf3 {[%clk 0:01:51]} 20... e5 {[%clk 0:01:44]} 21. dxe6
{[%clk 0:01:48]} 21... Nxe6 {[%clk 0:01:43.8]} 22. Be3 {[%clk 0:01:43.9]} 22...
Bc6 {[%clk 0:01:43.6]} 23. Nd4 {[%clk 0:01:31.8]} 23... Nxd4 {[%clk 0:01:41.1]}
24. Bxd4 {[%clk 0:01:32.7]} 24... Rc8 {[%clk 0:01:31.8]} 25. Bf3 {[%clk
0:01:31.5]} 25... Bxf3 {[%clk 0:01:31.2]} 26. Rxf3 {[%clk 0:01:32.4]} 26... Re8
{[%clk 0:01:25.1]} 27. Nd5 {[%clk 0:01:31.2]} 27... f5 {[%clk 0:01:20.5]} 28.
Bxg7 {[%clk 0:01:24.7]} 28... Kxg7 {[%clk 0:01:21.4]} 29. Qd4+ {[%clk
0:01:24.5]} 29... Kg8 {[%clk 0:01:14.7]} 30. Nf6+ {[%clk 0:01:23.9]} 30... Kf8
{[%clk 0:01:14.8]} 31. Nxh7+ {[%clk 0:01:23.5]} 31... Kg8 {[%clk 0:01:13.9]} 32.
Nf6+ {[%clk 0:01:22.9]} 32... Kf8 {[%clk 0:01:14.2]} 33. Nxe8 {[%clk 0:01:18.9]}
33... Kxe8 {[%clk 0:01:14.5]} 34. Re1+ {[%clk 0:01:16.8]} 34... Kd7 {[%clk
0:01:13.8]} 35. Qd5 {[%clk 0:01:09.8]} 35... Qf6 {[%clk 0:01:11.5]} 36. g5
{[%clk 0:01:06.3]} 36... Qg7 {[%clk 0:01:09.8]} 37. Rfe3 {[%clk 0:01:02.2]}
37... Nd8 {[%clk 0:01:08.5]} 38. Rd1 {[%clk 0:00:51.6]} 38... Rc6 {[%clk
0:01:06.1]} 39. b4 {[%clk 0:00:49.6]} 39... Qf8 {[%clk 0:00:59.2]} 40. Red3
{[%clk 0:00:44.3]} 40... Ne6 {[%clk 0:00:54.9]} 41. b5 {[%clk 0:00:40.3]} 41...
Rc5 {[%clk 0:00:53.5]} 42. Qxd6+ {[%clk 0:00:37.9]} 42... Qxd6 {[%clk
0:00:54.4]} 43. Rxd6+ {[%clk 0:00:38.4]} 43... Ke7 {[%clk 0:00:54.3]} 44. Rd7+
{[%clk 0:00:37.4]} 44... Ke8 {[%clk 0:00:54.6]} 45. Rxa7 {[%clk 0:00:36.8]}
45... Nxf4 {[%clk 0:00:53.1]} 46. Re1+ {[%clk 0:00:30.9]} 46... Kf8 {[%clk
0:00:52.8]} 47. Ree7 {[%clk 0:00:24.9]} 47... Nxh3+ {[%clk 0:00:51.6]} 48. Kh2
{[%clk 0:00:23]} 48... Nxg5 {[%clk 0:00:52.5]} 49. Rec7 {[%clk 0:00:20.2]} 49...
Rxc7 {[%clk 0:00:50.2]} 50. Rxc7 {[%clk 0:00:21.1]} 50... Nf3+ {[%clk
0:00:50.3]} 51. Kg3 {[%clk 0:00:20.5]} 51... Ne5 {[%clk 0:00:50.6]} 52. c5
{[%clk 0:00:19.9]} 52... bxc5 {[%clk 0:00:50.2]} 53. Rxc5 {[%clk 0:00:20.8]}
53... Nd7 {[%clk 0:00:50]} 54. Rc6 {[%clk 0:00:19.7]} 54... g5 {[%clk
0:00:49.7]} 55. b6 {[%clk 0:00:19.5]} 55... Ke7 {[%clk 0:00:48.7]} 56. b7 {[%clk
0:00:17.5]} 56... Ne5 {[%clk 0:00:48.1]} 57. Rc7+ {[%clk 0:00:15.7]} 57... Kd6
{[%clk 0:00:47.5]} 58. b8=Q {[%clk 0:00:14.4]} 58... f4+ {[%clk 0:00:48.4]} 59.
Kg2 {[%clk 0:00:13.5]} 1-0

[Event "*** SCC Grand Prix: Titled Tuesday Blitz"]
[Site "Chess.com"]
[Date "2020.09.08"]
[Round "1"]
[White "GukeshDommaraju"]
[Black "Chessdreamer2020"]
[Result "1-0"]
[WhiteElo "2750"]
[BlackElo "2392"]
[TimeControl "180+1"]
[EndTime "10:07:37 PDT"]
[Termination "GukeshDommaraju won on time"]

1. e4 {[%clk 0:03:00.9]} 1... d6 {[%clk 0:02:59.6]} 2. d4 {[%clk 0:03:00.7]}
2... Nf6 {[%clk 0:03:00]} 3. Nc3 {[%clk 0:03:00.7]} 3... e5 {[%clk 0:03:00.5]}
4. Nf3 {[%clk 0:03:00.2]} 4... Nbd7 {[%clk 0:03:00.8]} 5. Bc4 {[%clk 0:03:00.3]}
5... Be7 {[%clk 0:03:01]} 6. O-O {[%clk 0:02:58]} 6... O-O {[%clk 0:03:00.6]} 7.
a4 {[%clk 0:02:58]} 7... a5 {[%clk 0:02:59.9]} 8. h3 {[%clk 0:02:56.9]} 8... c6
{[%clk 0:03:00]} 9. Re1 {[%clk 0:02:55.9]} 9... Nb6 {[%clk 0:02:59.6]} 10. Bb3
{[%clk 0:02:54.8]} 10... exd4 {[%clk 0:02:59]} 11. Nxd4 {[%clk 0:02:55.7]} 11...
d5 {[%clk 0:02:55.3]} 12. e5 {[%clk 0:02:37.9]} 12... Nfd7 {[%clk 0:02:54.6]}
13. Nf5 {[%clk 0:02:35.4]} 13... Nc5 {[%clk 0:02:50]} 14. Nxe7+ {[%clk
0:02:33.9]} 14... Qxe7 {[%clk 0:02:49.4]} 15. Be3 {[%clk 0:02:31.9]} 15... Bf5
{[%clk 0:02:34.7]} 16. Ra3 {[%clk 0:02:19.4]} 16... Nbd7 {[%clk 0:02:27.2]} 17.
Ba2 {[%clk 0:02:17.1]} 17... Qh4 {[%clk 0:02:20.2]} 18. Ne2 {[%clk 0:02:07.6]}
18... Ne6 {[%clk 0:02:13.7]} 19. Ng3 {[%clk 0:01:50.6]} 19... Bg6 {[%clk
0:02:11.5]} 20. Bd2 {[%clk 0:01:48.5]} 20... Rfe8 {[%clk 0:01:55.3]} 21. Kh2
{[%clk 0:01:27.3]} 21... Nd4 {[%clk 0:01:44]} 22. Bg5 {[%clk 0:01:23.8]} 22...
Qxg5 {[%clk 0:01:43.6]} 23. Qxd4 {[%clk 0:01:23.2]} 23... Nxe5 {[%clk
0:01:31.4]} 24. Rae3 {[%clk 0:01:13.6]} 24... f6 {[%clk 0:01:24.5]} 25. c3
{[%clk 0:00:53.4]} 25... Nd7 {[%clk 0:01:08.6]} 26. c4 {[%clk 0:00:42.9]} 26...
Rxe3 {[%clk 0:01:06.7]} 27. Rxe3 {[%clk 0:00:42.9]} 27... Bf7 {[%clk 0:01:01.2]}
28. f4 {[%clk 0:00:37]} 28... c5 {[%clk 0:00:41.5]} 29. Qd2 {[%clk 0:00:36.8]}
29... Qh4 {[%clk 0:00:33.6]} 30. Re7 {[%clk 0:00:27.4]} 30... Nb6 {[%clk
0:00:30.3]} 31. cxd5 {[%clk 0:00:26.2]} 31... Rd8 {[%clk 0:00:28.3]} 32. Rxb7
{[%clk 0:00:19.5]} 32... Nxa4 {[%clk 0:00:15.3]} 33. Qxa5 {[%clk 0:00:18.3]}
33... Re8 {[%clk 0:00:11]} 34. Qxa4 {[%clk 0:00:17.1]} 34... g5 {[%clk
0:00:08.3]} 35. Qd7 {[%clk 0:00:12.1]} 35... Rf8 {[%clk 0:00:06.4]} 36. d6
{[%clk 0:00:11.8]} 36... gxf4 {[%clk 0:00:03.5]} 37. Bxf7+ {[%clk 0:00:10.9]}
37... Kh8 {[%clk 0:00:03.5]} 38. Nf5 {[%clk 0:00:10.1]} 38... Qg5 {[%clk
0:00:01.7]} 39. Be6 {[%clk 0:00:08.1]} 1-0

[Event "*** SCC Grand Prix: Titled Tuesday Blitz"]
[Site "Chess.com"]
[Date "2020.09.08"]
[Round "1"]
[White "Grieve72"]
[Black "Annawel"]
[Result "0-1"]
[WhiteElo "2459"]
[BlackElo "2947"]
[TimeControl "180+1"]
[EndTime "10:07:38 PDT"]
[Termination "Annawel won by resignation"]

1. e4 {[%clk 0:02:59.5]} 1... c5 {[%clk 0:02:57.2]} 2. Nf3 {[%clk 0:02:59.4]}
2... d6 {[%clk 0:02:55.5]} 3. d4 {[%clk 0:02:59.5]} 3... cxd4 {[%clk 0:02:52.5]}
4. Nxd4 {[%clk 0:03:00.4]} 4... Nf6 {[%clk 0:02:51.3]} 5. Nc3 {[%clk 0:03:00.9]}
5... a6 {[%clk 0:02:51.1]} 6. f3 {[%clk 0:03:00.9]} 6... e5 {[%clk 0:02:50.8]}
7. Nb3 {[%clk 0:03:01.3]} 7... Be6 {[%clk 0:02:50.7]} 8. Be3 {[%clk 0:03:01.6]}
8... h5 {[%clk 0:02:48]} 9. Nd5 {[%clk 0:03:01]} 9... Bxd5 {[%clk 0:02:47.7]}
10. exd5 {[%clk 0:03:01.9]} 10... Nbd7 {[%clk 0:02:48.2]} 11. Qd2 {[%clk
0:03:01.6]} 11... g6 {[%clk 0:02:47.6]} 12. Be2 {[%clk 0:03:01.5]} 12... Bg7
{[%clk 0:02:46]} 13. O-O {[%clk 0:03:00]} 13... O-O {[%clk 0:02:45.8]} 14. c4
{[%clk 0:02:59.9]} 14... a5 {[%clk 0:02:45]} 15. Rac1 {[%clk 0:02:56.9]} 15...
a4 {[%clk 0:02:44.5]} 16. Na1 {[%clk 0:02:56.9]} 16... b6 {[%clk 0:02:44.9]} 17.
Nc2 {[%clk 0:02:53.7]} 17... Re8 {[%clk 0:02:44.2]} 18. Nb4 {[%clk 0:02:50.2]}
18... Nc5 {[%clk 0:02:43.8]} 19. Rfe1 {[%clk 0:02:34.2]} 19... e4 {[%clk
0:02:11.3]} 20. Qc2 {[%clk 0:02:31.3]} 20... exf3 {[%clk 0:01:58.8]} 21. Bxf3
{[%clk 0:02:32.2]} 21... Ng4 {[%clk 0:01:59]} 22. Nc6 {[%clk 0:02:09.5]} 22...
Qh4 {[%clk 0:01:56.3]} 23. Bxg4 {[%clk 0:02:09.4]} 23... hxg4 {[%clk 0:01:55.9]}
24. Bf2 {[%clk 0:02:01.4]} 24... Qg5 {[%clk 0:01:42.8]} 25. b4 {[%clk
0:01:43.1]} 25... axb3 {[%clk 0:01:40.2]} 26. axb3 {[%clk 0:01:44]} 26... f5
{[%clk 0:01:38.3]} 27. Bd4 {[%clk 0:01:30.5]} 27... g3 {[%clk 0:01:26.1]} 28.
hxg3 {[%clk 0:01:21.9]} 28... Qxg3 {[%clk 0:01:20.6]} 29. Rxe8+ {[%clk
0:00:55.6]} 29... Rxe8 {[%clk 0:01:20.2]} 30. Bxg7 {[%clk 0:00:55.1]} 30... Qe3+
{[%clk 0:00:31.1]} 31. Kh1 {[%clk 0:00:30.8]} 31... Nd3 {[%clk 0:00:17.5]} 32.
Rf1 {[%clk 0:00:08.5]} 32... Kxg7 {[%clk 0:00:16.9]} 33. Qc3+ {[%clk 0:00:09]}
33... Kf7 {[%clk 0:00:14.5]} 34. Rf3 {[%clk 0:00:05.6]} 34... Qh6+ {[%clk
0:00:09.9]} 35. Rh3 {[%clk 0:00:02.4]} 35... Nf2+ {[%clk 0:00:10.3]} 36. Kg1
{[%clk 0:00:02.1]} 36... Nxh3+ {[%clk 0:00:10.7]} 37. gxh3 {[%clk 0:00:02.5]}
37... Qe3+ {[%clk 0:00:11.1]} 38. Qxe3 {[%clk 0:00:02.6]} 38... Rxe3 {[%clk
0:00:11.9]} 39. Nd4 {[%clk 0:00:03.2]} 39... Rxh3 {[%clk 0:00:11.9]} 40. Kf2
{[%clk 0:00:02.7]} 40... Rd3 {[%clk 0:00:12.3]} 41. Ne6 {[%clk 0:00:02]} 41...
Rxb3 {[%clk 0:00:12.4]} 0-1